bitfinex-derivatives/quotes_SOLF0:USTF0_20260304
["timestamp","ask_amount","ask_price","bid_price","bid_amount"]
[1772611985820,21.20812161,87.264,87.195,21.19298432]
[1772611986325,21.20812161,87.264,87.231,0.07277182]
[1772611986724,4.50019075,87.28,87.231,0.07277182]
[1772611987126,21.20812161,87.284,87.231,0.07277182]
[1772611987730,21.20812161,87.284,87.225,21.19298432]
[1772611988529,31.51912161,87.283,87.225,21.19298432]
[1772611988735,21.20812161,87.282,87.225,21.19298432]
[1772611988934,31.51912161,87.281,87.225,21.19298432]
[1772611989131,21.20812161,87.28,87.225,21.19298432]
[1772611989434,21.20812161,87.278,87.225,21.19298432]
[1772611989836,21.20812161,87.299,87.225,21.19298432]
[1772611990034,21.20812161,87.297,87.225,21.19298432]
[1772611990336,21.20812161,87.295,87.227,21.19298432]
[1772611990538,21.20812161,87.295,87.231,21.19298432]
[1772611990742,21.20812161,87.295,87.252,0.07295922]
[1772611991038,4.50019075,87.3,87.252,0.07295922]
[1772611991734,21.20812161,87.308,87.252,0.07295922]
[1772611991941,21.20812161,87.306,87.252,0.07295922]
[1772611992230,21.20812161,87.306,87.231,21.19298432]
[1772611992533,21.20812161,87.291,87.231,21.19298432]
[1772611993035,21.20812161,87.291,87.233,21.19298432]
[1772611993436,4.50019075,87.3,87.233,21.19298432]
[1772611993634,10.309,87.298,87.241,21.19298432]
[1772611994434,21.20812161,87.309,87.241,21.19298432]
[1772611995239,21.20812161,87.309,87.252,21.19298432]
[1772611995440,21.20812161,87.325,87.261,21.19298432]
[1772611996034,21.20812161,87.324,87.263,21.19298432]
[1772611996640,21.20812161,87.322,87.263,21.19298432]
[1772611997439,21.20812161,87.322,87.266,21.19298432]
[1772611998339,21.20812161,87.322,87.285,0.07234905]
[1772612000134,21.33933766,87.297,87.235,23.32800807]
[1772612001339,22.7658079,87.279,87.158,22.0747311]
[1772612001540,4.50019075,87.27,87.191,22.0747311]
[1772612001737,10.311,87.278,87.211,22.0747311]
[1772612001934,22.7658079,87.277,87.211,22.0747311]
[1772612003342,33.0778079,87.274,87.235,0.07287064]
[1772612003538,22.7658079,87.274,87.235,0.07287064]
[1772612003734,4.50019075,87.29,87.235,0.07287064]
[1772612003934,10.31,87.289,87.235,0.07287064]
[1772612004142,33.0758079,87.289,87.235,0.07287064]
[1772612004343,33.0758079,87.289,87.227,22.0747311]
[1772612004544,22.7658079,87.288,87.227,22.0747311]
[1772612006042,22.7658079,87.288,87.249,0.07304566]
[1772612006237,10.308,87.301,87.249,0.07304566]
[1772612006445,10.308,87.301,87.249,22.14777676]
[1772612007442,33.0738079,87.301,87.249,22.14777676]
[1772612007642,10.309,87.295,87.249,22.14777676]
[1772612008047,22.7658079,87.294,87.249,0.07304566]
[1772612008246,22.7658079,87.294,87.234,22.0747311]
[1772612008645,22.7658079,87.294,87.263,0.07460169]
[1772612012346,10.31,87.291,87.263,0.07460169]
[1772612013350,33.0758079,87.291,87.263,0.07460169]
[1772612013550,33.0758079,87.289,87.263,0.07460169]
[1772612014049,22.7658079,87.288,87.233,22.0747311]
[1772612014844,4.50035933,87.3,87.233,22.0747311]
[1772612015149,22.7658079,87.299,87.233,22.0747311]
[1772612015945,0.07393738,87.275,87.233,22.0747311]
[1772612017251,0.07393738,87.275,87.236,22.0747311]
[1772612017749,22.7658079,87.299,87.236,22.0747311]
[1772612018152,10.31,87.286,87.236,22.0747311]
[1772612018346,22.7658079,87.315,87.183,22.0747311]
[1772612018550,14.1877992,87.341,87.211,22.0747311]
[1772612018551,22.7658079,87.299,87.211,22.0747311]
[1772612018751,22.7658079,87.299,87.231,22.0747311]
[1772612019455,0.0772057,87.274,87.231,22.0747311]
[1772612022952,22.7658079,87.272,87.216,22.0747311]
[1772612023856,0.07258401,87.253,87.216,22.0747311]
[1772612024050,10.31,87.288,87.221,22.0747311]
[1772612025260,10.31,87.288,87.225,22.0747311]
[1772612026151,10.31,87.288,87.227,22.0747311]
[1772612026558,10.309,87.298,87.23,22.0747311]
[1772612027058,10.31,87.289,87.231,22.0747311]
[1772612027860,22.7658079,87.298,87.233,22.0747311]
[1772612028561,21.75538978,87.314,87.27,1.51154776]
[1772612031364,21.75538978,87.314,87.283,0.07219628]
[1772612031564,1.51154776,87.32,87.283,0.07219628]
[1772612031761,23.26693754,87.32,87.283,0.07219628]
[1772612031965,1.51154776,87.31,87.283,0.07219628]
[1772612032159,23.26693754,87.31,87.283,0.07219628]
[1772612033863,21.75538978,87.299,87.26,1.51154776]
[1772612034261,21.75538978,87.299,87.251,23.71526493]
[1772612034567,1.51154776,87.31,87.26,25.22681269]
[1772612035163,1.51154776,87.31,87.27,25.22681269]
[1772612035766,21.75538978,87.314,87.27,25.22681269]
[1772612036060,1.51154776,87.32,87.27,25.22681269]
[1772612036367,0.07464679,87.299,87.27,25.22681269]
[1772612037067,0.07464679,87.299,87.28,1.51154776]
[1772612038162,0.07464679,87.299,87.27,23.71526493]
[1772612038463,0.07464679,87.299,87.26,25.22681269]
[1772612040568,0.07464679,87.299,87.27,1.51154776]
[1772612041261,0.07464679,87.299,87.26,23.71526493]
[1772612041262,0.07464679,87.299,87.261,23.71526493]
[1772612041457,0.07464679,87.299,87.27,1.51154776]
[1772612041657,0.07464679,87.299,87.27,25.22681269]
[1772612041863,21.75538978,87.315,87.27,25.22681269]
[1772612042670,1.51154776,87.31,87.27,25.22681269]
[1772612043071,0.07757007,87.301,87.27,25.22681269]
[1772612044768,0.07757007,87.301,87.27,23.71526493]
[1772612045269,0.07757007,87.301,87.27,25.22681269]
[1772612047170,1.51154776,87.29,87.214,23.71526493]
[1772612047371,23.26693754,87.29,87.24,1.51154776]
[1772612047674,21.75538978,87.29,87.25,1.51154776]
[1772612047869,1.51154776,87.3,87.251,23.71526493]
[1772612048070,1.51154776,87.32,87.271,23.71526493]
[1772612048273,21.75538978,87.32,87.271,23.71526493]
[1772612048474,23.26693754,87.32,87.271,23.71526493]
[1772612048975,33.57293754,87.32,87.28,1.51154776]
[1772612049174,21.75538978,87.319,87.271,23.71526493]
[1772612049469,21.75538978,87.319,87.291,0.07520457]
[1772612049970,1.51154776,87.31,87.271,23.71526493]
[1772612050478,0.07452019,87.314,87.271,23.71526493]
[1772612051674,1.51154776,87.31,87.271,23.71526493]
[1772612052377,1.51154776,87.31,87.26,25.22681269]
[1772612054176,21.75538978,87.307,87.241,10.315]
[1772612054377,21.75538978,87.299,87.25,1.51154776]
[1772612054679,21.75538978,87.299,87.251,23.71526493]
[1772612054880,1.51154776,87.29,87.251,23.71526493]
[1772612055277,1.51154776,87.28,87.24,1.51154776]
[1772612055978,32.06538978,87.285,87.24,25.22681269]
[1772612056173,1.51154776,87.29,87.25,1.51154776]
[1772612057679,0.07235587,87.279,87.25,1.51154776]
[1772612059487,10.308,87.307,87.261,24.08742824]
[1772612060684,22.211826,87.299,87.25,1.51154776]
[1772612061283,1.51154776,87.3,87.247,23.04240867]
[1772612061284,22.211826,87.288,87.247,23.04240867]
[1772612061884,22.211826,87.288,87.266,0.0730628]
[1772612063888,22.211826,87.288,87.247,23.04240867]
[1772612064089,0.07497196,87.286,87.247,23.04240867]
[1772612064993,1.51154776,87.32,87.27,24.55395643]
[1772612065286,22.211826,87.32,87.28,1.51154776]
[1772612066592,22.211826,87.32,87.28,1.51114283]
[1772612067292,10.306,87.318,87.291,0.07521176]
[1772612068190,0.07500656,87.313,87.27,24.5535515]
[1772612069492,0.07500656,87.313,87.281,23.04240867]
[1772612070091,1.51114283,87.32,87.281,23.04240867]
[1772612070592,10.306,87.318,87.281,23.04240867]
[1772612071183,22.211826,87.327,87.281,23.04240867]
[1772612071490,1.51114283,87.32,87.281,23.04240867]
[1772612071997,1.51114283,87.3,87.26,1.51114283]
[1772612072998,0.07584609,87.289,87.26,1.51114283]
[1772612073299,0.07584609,87.289,87.25,23.04240867]
[1772612073905,0.07584609,87.289,87.25,24.5535515]
[1772612076610,0.07584609,87.289,87.261,23.04240867]
[1772612078609,0.07584609,87.289,87.206,27.19044458]
[1772612078610,0.07584609,87.289,87.27,24.5535515]
[1772612078912,1.51114283,87.31,87.27,24.5535515]
[1772612079810,1.51114283,87.32,87.281,23.04240867]
[1772612080013,22.211826,87.336,87.291,23.04240867]
[1772612081513,22.211826,87.336,87.305,0.07569835]
[1772612082710,23.72296883,87.32,87.263,23.04240867]
[1772612083014,1.51114283,87.3,87.263,23.04240867]
[1772612084112,0.07224104,87.29,87.263,23.04240867]
[1772612087614,10.306,87.317,87.271,23.04240867]
[1772612087917,1.51114283,87.31,87.271,23.04240867]
[1772612089404,1.51114283,87.31,87.282,0.07283692]
[1772612091417,10.308,87.307,87.282,0.07283692]
[1772612092221,10.309,87.299,87.26,1.51114283]
[1772612094221,0.07281572,87.303,87.239,10.316]
[1772612094222,10.309,87.292,87.25,1.51114283]
[1772612094617,24.04067881,87.29,87.243,24.52086281]
[1772612094924,22.52953598,87.29,87.243,24.52086281]
[1772612095120,24.04067881,87.29,87.243,24.52086281]
[1772612095620,0.07592072,87.275,87.243,24.52086281]
[1772612095821,1.51114283,87.27,87.228,24.52086281]
[1772612096122,1.51114283,87.27,87.23,1.51114283]
[1772612096319,160.309,87.329,87.213,24.52086281]
[1772612096320,24.04067881,87.26,87.213,24.52086281]
[1772612096515,1.51114283,87.25,87.21,1.51114283]
[1772612097024,1.51114283,87.25,87.201,24.52086281]
[1772612097619,0.07752504,87.234,87.201,24.52086281]
[1772612097925,0.07752504,87.234,87.21,1.51114283]
[1772612098916,0.07752504,87.234,87.21,26.03200564]
[1772612100427,24.04067881,87.26,87.21,26.03200564]
[1772612100916,22.52953598,87.255,87.21,26.03200564]
[1772612101119,1.51114283,87.22,87.168,24.52086281]
[1772612101325,1.51114283,87.22,87.18,1.51114283]
[1772612101527,1.51114283,87.23,87.19,1.51114283]
[1772612101723,24.04067881,87.23,87.185,0.07364294]
[1772612102322,24.04067881,87.22,87.185,0.07364294]
[1772612102725,24.04067881,87.22,87.166,24.52086281]
[1772612102726,10.319,87.209,87.166,24.52086281]
[1772612103028,22.52953598,87.208,87.166,24.52086281]
[1772612103730,1.51114283,87.2,87.152,24.52086281]
[1772612104028,22.52953598,87.206,87.17,1.51114283]
[1772612104230,1.51114283,87.21,87.17,1.51114283]
[1772612104825,1.51114283,87.21,87.153,24.52086281]
[1772612105020,1.51114283,87.21,87.16,26.03200564]
[1772612105226,1.51114283,87.2,87.16,24.52086281]
[1772612105425,1.51114283,87.2,87.16,26.03200564]
[1772612105629,1.51114283,87.21,87.17,1.51114283]
[1772612105826,1.51114283,87.21,87.16,24.52086281]
[1772612106027,1.51114283,87.21,87.16,26.03200564]
[1772612106337,22.52953598,87.21,87.16,26.03200564]
[1772612106634,1.51114283,87.2,87.16,26.03200564]
[1772612106934,10.319,87.211,87.141,24.52086281]
[1772612106935,1.51114283,87.19,87.141,24.52086281]
[1772612107325,1.51114283,87.18,87.141,24.52086281]
[1772612107729,1.51114283,87.17,87.141,24.52086281]
[1772612108129,1.51114283,87.18,87.141,24.52086281]
[1772612109035,22.52953598,87.19,87.141,24.52086281]
[1772612109231,1.51114283,87.18,87.141,24.52086281]
[1772612109731,1.51114283,87.2,87.16,1.51114283]
[1772612109930,22.52953598,87.207,87.16,24.52086281]
[1772612110234,1.51114283,87.21,87.17,1.51114283]
[1772612110431,22.52953598,87.222,87.16,24.52086281]
[1772612111028,22.52953598,87.222,87.162,24.52086281]
[1772612112130,22.52953598,87.221,87.124,24.52086281]
[1772612112330,27.03863915,87.2,87.124,24.52086281]
[1772612114330,10.322,87.189,87.126,24.52086281]
[1772612114530,0.0759837,87.171,87.126,24.52086281]
[1772612114936,10.324,87.17,87.126,24.52086281]
[1772612115134,0.0759837,87.171,87.126,24.52086281]
[1772612116334,22.60551968,87.171,87.11,24.52086281]
[1772612116834,22.52953598,87.171,87.11,24.52086281]
[1772612117036,10.324,87.17,87.11,24.52086281]
[1772612118536,10.325,87.16,87.11,24.52086281]
[1772612118732,22.32406297,87.159,87.11,24.52086281]
[1772612119231,32.65006297,87.151,87.091,23.90881438]
[1772612120136,10.327,87.146,87.091,23.90881438]
[1772612120434,22.32406297,87.15,87.091,23.90881438]
[1772612120630,10.328,87.138,87.091,23.90881438]
[1772612121036,20.643,87.193,87.069,22.2095515]
[1772612121037,22.32848899,87.137,87.069,22.2095515]
[1772612121436,10.329,87.125,87.069,22.2095515]
[1772612121626,32.65748899,87.125,87.069,22.2095515]
[1772612121826,22.32848899,87.124,87.069,22.2095515]
[1772612122028,22.32848899,87.14,87.069,22.2095515]
[1772612122633,10.328,87.138,87.088,0.07832643]
[1772612122828,32.65648899,87.138,87.088,0.07832643]
[1772612123035,4.50910317,87.13,87.053,22.2095515]
[1772612123230,4.50910317,87.11,87.053,22.2095515]
[1772612123433,22.32848899,87.109,87.053,22.2095515]
[1772612123735,22.32848899,87.106,87.031,22.2095515]
[1772612124140,10.333,87.09,87.031,22.2095515]
[1772612124844,22.32848899,87.109,87.031,22.2095515]
[1772612125340,22.32848899,87.097,87.031,22.2095515]
[1772612125938,22.32848899,87.097,87.034,22.2095515]
[1772612126142,22.32848899,87.097,87.041,22.2095515]
[1772612127237,10.333,87.096,87.041,22.2095515]
[1772612128741,22.32848899,87.097,87.041,22.2095515]
[1772612129336,0.07681938,87.078,87.03,36.42378939]
[1772612129540,0.07681938,87.078,87.031,22.2095515]
[1772612131241,0.07681938,87.078,87.031,32.5495515]
[1772612131444,22.32848899,87.116,87.041,22.2095515]
[1772612131942,10.334,87.088,87.041,22.2095515]
[1772612132140,22.32848899,87.087,87.041,22.2095515]
[1772612132339,4.52199106,87.15,87.03,14.21423789]
[1772612132340,22.32848899,87.08,87.03,22.20978939]
[1772612132549,10.335,87.077,87.03,22.20978939]
[1772612132940,22.32848899,87.076,87.046,0.07584364]
[1772612133149,10.336,87.072,87.046,0.07584364]
[1772612133346,32.66448899,87.072,87.046,0.07584364]
[1772612134156,22.32848899,87.084,87.046,0.07584364]
[1772612135256,22.32848899,87.08,87.046,0.07584364]
[1772612136556,10.335,87.078,87.046,0.07584364]
[1772612137055,22.32848899,87.08,87.046,0.07584364]
[1772612137453,26.85048005,87.11,87.046,22.28539514]
[1772612137847,26.85048005,87.11,87.046,22.2095515]
[1772612138757,10.333,87.089,87.046,22.2095515]
[1772612140657,10.333,87.089,87.059,0.07236731]
[1772612141148,32.66148899,87.089,87.059,0.07236731]
[1772612142359,10.335,87.078,87.059,0.07236731]
[1772612143761,10.336,87.069,87.059,0.07236731]
[1772612144353,22.32848899,87.068,87.03,0.00023789]
[1772612144560,22.32848899,87.081,87.03,0.00023789]
[1772612145657,10.334,87.087,87.03,0.00023789]
[1772612145959,22.32848899,87.095,87.03,0.00023789]
[1772612145960,22.32848899,87.095,87.04,4.52199106]
[1772612146156,22.32848899,87.095,87.041,22.2095515]
[1772612146356,10.333,87.092,87.041,22.2095515]
[1772612146662,22.32848899,87.089,87.059,0.0761496]
[1772612146863,10.335,87.075,87.059,0.0761496]
[1772612147062,22.32848899,87.089,87.059,0.0761496]
[1772612147264,22.32848899,87.089,87.03,0.00023789]
[1772612147564,10.335,87.075,87.03,0.00023789]
[1772612147958,22.32848899,87.089,87.03,0.00023789]
[1772612148159,22.32848899,87.089,87.032,22.2095515]
[1772612148554,22.32848899,87.089,87.051,0.07331875]
[1772612148756,21.06770259,87.099,87.051,23.23306077]
[1772612149662,21.06770259,87.139,87.051,23.23306077]
[1772612149861,21.06770259,87.139,87.071,23.15974202]
[1772612150361,10.329,87.128,87.071,23.15974202]
[1772612150561,21.06770259,87.119,87.096,0.07499656]
[1772612150761,21.06770259,87.119,87.071,23.15974202]
[1772612151664,1.51827223,87.11,87.07,1.51827223]
[1772612152956,10.33,87.118,87.07,1.51827223]
[1772612153260,10.329,87.128,87.08,1.51827223]
[1772612153465,0.075882,87.103,87.08,24.67801425]
[1772612153660,0.075882,87.103,87.03,0.00023789]
[1772612153661,0.075882,87.103,87.056,23.15974202]
[1772612153867,0.075882,87.103,87.07,1.51827223]
[1772612154165,1.51827223,87.11,87.061,23.15974202]
[1772612154366,1.51827223,87.11,87.07,1.51827223]
[1772612154664,0.07467364,87.095,87.061,23.15974202]
[1772612155568,0.07467364,87.095,87.07,1.51827223]
[1772612155768,0.07467364,87.095,87.061,23.15974202]
[1772612156364,10.331,87.111,87.08,1.51827223]
[1772612156571,1.51827223,87.12,87.08,1.51827223]
[1772612156871,10.33,87.122,87.08,1.51827223]
[1772612157666,21.06770259,87.129,87.09,1.51827223]
[1772612158271,1.51827223,87.14,87.101,0.07767913]
[1772612158573,1.51827223,87.13,87.101,0.07767913]
[1772612159272,10.329,87.128,87.101,0.07767913]
[1772612160876,14.0281016,87.183,87.101,0.07767913]
[1772612160877,21.06770259,87.155,87.11,1.51827223]
[1772612161275,1.51827223,87.15,87.11,1.51827223]
[1772612161874,1.51827223,87.15,87.039,20.65702067]
[1772612161875,1.51827223,87.17,87.12,1.51827223]
[1772612162375,1.51827223,87.17,87.13,1.51827223]
[1772612162568,10.324,87.167,87.13,1.51827223]
[1772612162778,1.51827223,87.18,87.13,23.15974202]
[1772612162978,1.51827223,87.18,87.13,24.67801425]
[1772612163175,11.84127223,87.18,87.13,24.67801425]
[1772612163379,22.58597482,87.18,87.13,24.67801425]
[1772612163875,1.51827223,87.17,87.12,1.51827223]
[1772612164073,1.51827223,87.17,87.146,0.07460459]
[1772612164279,22.58597482,87.17,87.12,1.51827223]
[1772612164479,21.06770259,87.17,87.114,23.15974202]
[1772612165076,10.325,87.158,87.114,23.15974202]
[1772612166378,10.326,87.148,87.097,23.15974202]
[1772612166678,0.07431554,87.145,87.097,23.15974202]
[1772612168480,10.327,87.144,87.097,23.15974202]
[1772612169271,10.328,87.133,87.097,23.15974202]
[1772612170184,0.07534512,87.124,87.082,23.15974202]
[1772612170480,21.06770259,87.121,87.061,23.15974202]
[1772612170874,21.06770259,87.121,87.03,20.65725856]
[1772612170875,0.07534512,87.124,87.063,23.15974202]
[1772612171074,21.06770259,87.138,87.063,23.15974202]
[1772612171469,10.329,87.123,87.063,23.15974202]
[1772612171676,31.39670259,87.123,87.063,23.15974202]
[1772612172181,10.331,87.114,87.063,23.15974202]
[1772612172479,0.07255372,87.102,87.063,23.15974202]
[1772612174176,0.07255372,87.102,87.057,10.337]
[1772612174177,4.51451222,87.15,87.071,23.15974202]
[1772612174978,10.328,87.136,87.071,23.15974202]
[1772612175180,21.06770259,87.129,87.052,23.15974202]
[1772612175682,10.33,87.12,87.095,0.07352598]
[1772612176282,21.06770259,87.129,87.073,23.15974202]
[1772612176682,21.06770259,87.145,87.073,23.15974202]
[1772612176884,10.328,87.135,87.081,23.15974202]
[1772612177985,10.328,87.135,87.099,0.07394783]
[1772612178585,31.39470259,87.145,87.099,0.07394783]
[1772612179783,22.10115116,87.129,87.04,21.12829054]
[1772612179984,22.10115116,87.129,87.051,21.12829054]
[1772612181288,10.331,87.108,87.051,21.12829054]
[1772612181791,0.07327954,87.099,87.051,21.12829054]
[1772612181989,10.40527954,87.099,87.051,21.12829054]
[1772612182189,20.02683514,87.098,87.051,21.12829054]
[1772612182390,20.02683514,87.098,87.031,22.14086688]
[1772612182584,20.02683514,87.098,87.04,4.51451222]
[1772612182784,0.07327954,87.099,87.044,22.14086688]
[1772612182987,20.02683514,87.126,87.044,22.14086688]
[1772612183388,10.331,87.11,87.046,22.14086688]
[1772612184684,0.07727942,87.087,87.046,22.14086688]
[1772612185789,0.07727942,87.087,87.03,13.94224737]
[1772612185790,20.02683514,87.086,87.03,0.00023789]
[1772612186091,0.07727942,87.087,87.03,0.00023789]
[1772612186285,20.02683514,87.102,87.03,0.00023789]
[1772612186492,10.333,87.096,87.05,1.51921361]
[1772612186685,0.0759819,87.067,87.046,22.14086688]
[1772612186889,0.0759819,87.067,87.03,23.66031838]
[1772612187496,0.0759819,87.067,87.03,22.14110477]
[1772612188183,0.0759819,87.067,87.03,23.66031838]
[1772612188588,0.0759819,87.067,87.03,22.14110477]
[1772612190590,30.35883514,87.099,87.041,22.14086688]
[1772612190990,10.331,87.11,87.041,22.14086688]
[1772612192187,10.331,87.11,87.042,10.339]
[1772612192496,10.331,87.11,87.043,22.14086688]
[1772612192687,20.02683514,87.118,87.046,10.339]
[1772612192889,20.02683514,87.118,87.06,4.52302532]
[1772612193090,20.02683514,87.118,87.061,22.14086688]
[1772612193895,20.02683514,87.118,87.081,0.07323423]
[1772612194293,10.33,87.117,87.081,0.07323423]
[1772612194489,30.35683514,87.117,87.081,0.07323423]
[1772612196493,4.52302532,87.14,87.081,0.07323423]
[1772612196494,20.02683514,87.112,87.081,0.07323423]
[1772612196996,20.02683514,87.112,87.061,22.14086688]
[1772612197398,20.02683514,87.145,87.071,22.14086688]
[1772612197598,20.02683514,87.143,87.09,4.52302532]
[1772612197798,20.02683514,87.143,87.079,22.14086688]
[1772612197799,10.328,87.132,87.079,22.14086688]
[1772612198394,30.35383514,87.143,87.081,22.14086688]
[1772612198795,20.02683514,87.142,87.097,0.07411611]
[1772612199101,10.328,87.136,87.097,0.07411611]
[1772612199299,10.328,87.136,87.081,22.14086688]
[1772612200102,20.02683514,87.142,87.081,22.14086688]
[1772612200295,20.02683514,87.142,87.091,22.14086688]
[1772612200697,14.0281016,87.193,87.09,4.52302532]
[1772612200698,20.02683514,87.158,87.103,22.21603698]
[1772612200903,20.02683514,87.158,87.111,22.14086688]
[1772612201399,20.02683514,87.195,87.131,22.14086688]
[1772612202198,10.321,87.193,87.131,22.14086688]
[1772612202607,10.321,87.193,87.154,0.07495137]
[1772612203502,20.02683514,87.181,87.116,22.14086688]
[1772612204602,10.326,87.149,87.091,22.14086688]
[1772612204809,20.02683514,87.149,87.035,22.14086688]
[1772612205003,20.02683514,87.149,87.071,22.14086688]
[1772612205901,4.52302532,87.16,87.101,0.07247178]
[1772612205902,10.329,87.129,87.101,0.07247178]
[1772612206203,30.35583514,87.129,87.071,22.14086688]
[1772612206507,20.02683514,87.128,87.071,22.14086688]
[1772612206708,10.33,87.12,87.071,22.14086688]
[1772612206896,20.02683514,87.145,87.071,22.14086688]
[1772612208205,10.329,87.131,87.072,10.335]
[1772612208404,10.329,87.131,87.073,20.75673466]
[1772612208605,0.07515223,87.117,87.073,20.75673466]
[1772612209108,0.07515223,87.117,87.081,20.75673466]
[1772612209302,10.5210762,87.181,87.05,4.52302532]
[1772612209303,21.55609578,87.162,87.101,20.75673466]
[1772612209704,10.5210762,87.199,87.101,20.75673466]
[1772612209902,21.55609578,87.189,87.101,20.75673466]
[1772612210105,21.55609578,87.187,87.101,20.75673466]
[1772612210301,21.55609578,87.172,87.101,20.75673466]
[1772612211611,10.325,87.158,87.101,20.75673466]
[1772612212007,10.325,87.158,87.128,0.07703499]
[1772612213610,21.55609578,87.148,87.1,4.52302532]
[1772612213806,21.55609578,87.148,87.09,25.27975998]
[1772612214202,10.327,87.145,87.09,25.27975998]
[1772612214701,21.55609578,87.144,87.09,20.75673466]
[1772612215603,21.55609578,87.144,87.021,160.874]
[1772612215604,21.55609578,87.144,87.07,25.27975998]
[1772612216211,0.07518386,87.116,87.07,25.27975998]
[1772612216712,0.07518386,87.116,87.07,20.75673466]
[1772612217104,10.33,87.115,87.07,20.75673466]
[1772612220110,0.07518386,87.116,87.07,20.75673466]
[1772612220314,0.07518386,87.116,87.07,25.27975998]
[1772612221209,21.55609578,87.157,87.073,20.75673466]
[1772612221414,21.55609578,87.157,87.091,20.75673466]
[1772612221815,10.327,87.147,87.091,20.75673466]
[1772612223307,31.88109578,87.157,87.092,20.75673466]
[1772612223510,10.325,87.157,87.11,20.83104846]
[1772612224812,10.327,87.147,87.11,0.0743138]
[1772612225314,10.327,87.147,87.094,20.75673466]
[1772612226019,10.328,87.136,87.094,20.75673466]
[1772612226721,10.329,87.127,87.073,20.75673466]
[1772612227523,10.329,87.127,87.091,0.07360253]
[1772612229521,21.55609578,87.135,87.091,0.07360253]
[1772612229719,21.55609578,87.154,87.091,20.83033719]
[1772612230321,21.55609578,87.154,87.091,20.75673466]
[1772612231228,21.55609578,87.15,87.091,20.75673466]
[1772612232323,10.327,87.146,87.091,20.75673466]
[1772612232529,10.327,87.146,87.112,0.07311685]
[1772612233131,21.55609578,87.145,87.112,0.07311685]
[1772612233329,21.55609578,87.143,87.112,0.07311685]
[1772612233528,21.55609578,87.143,87.052,20.9299004]
[1772612233529,21.55609578,87.143,87.075,20.75673466]
[1772612234133,10.329,87.124,87.075,20.75673466]
[1772612235433,10.33,87.117,87.075,20.75673466]
[1772612237236,0.07397971,87.105,87.075,20.75673466]
[1772612237830,0.07397971,87.105,87.06,25.27975998]
[1772612239034,0.07397971,87.105,87.062,20.25002465]
[1772612240327,10.328,87.137,87.069,20.25002465]
[1772612240630,10.328,87.137,87.081,20.25002465]
[1772612241932,10.329,87.127,87.081,20.25002465]
[1772612243036,10.328,87.138,87.095,0.07325835]
[1772612243540,10.328,87.138,87.081,20.25002465]
[1772612244432,10.328,87.138,87.101,0.07306997]
[1772612244737,20.37646065,87.155,87.101,19.10594627]
[1772612244738,10.326,87.149,87.101,19.10594627]
[1772612245037,4.52302532,87.16,87.101,19.10594627]
[1772612245038,20.37646065,87.148,87.101,0.07306997]
[1772612245238,20.37646065,87.148,87.087,19.0328763]
[1772612245639,20.37646065,87.148,87.026,176.0]
[1772612245640,20.37646065,87.134,87.061,19.0328763]
[1772612245937,20.37646065,87.134,87.081,19.0328763]
[1772612246132,20.37646065,87.134,87.083,10.334]
[1772612246331,20.37646065,87.134,87.084,19.0328763]
[1772612246532,20.37646065,87.134,87.099,0.07274504]
[1772612246938,20.37646065,87.129,87.099,0.07274504]
[1772612247537,20.37646065,87.125,87.069,19.0328763]
[1772612248342,20.37646065,87.125,87.088,0.07280155]
[1772612248933,10.329,87.124,87.072,19.0328763]
[1772612249138,20.37646065,87.125,87.074,19.0328763]
[1772612250138,20.37646065,87.125,87.091,0.07242456]
[1772612251244,10.329,87.124,87.091,0.07242456]
[1772612251645,30.70546065,87.124,87.091,0.07242456]
[1772612253944,20.37646065,87.117,87.091,0.07242456]
[1772612254340,20.37646065,87.117,87.06,23.55062879]
[1772612254547,4.51775249,87.15,87.063,19.0328763]
[1772612254843,4.51775249,87.15,87.049,20.9299004]
[1772612254844,20.37646065,87.149,87.081,19.0328763]
[1772612255740,8.53129525,87.148,87.081,19.0328763]
[1772612255947,20.37646065,87.147,87.081,19.0328763]
[1772612256144,20.37646065,87.124,87.081,19.0328763]
[1772612257243,10.33,87.119,87.081,19.0328763]
[1772612257646,0.0765479,87.111,87.081,19.0328763]
[1772612258144,0.0765479,87.111,87.062,19.0328763]
[1772612258346,20.37646065,87.11,87.062,19.0328763]
[1772612258747,0.0765479,87.111,87.062,29.3698763]
[1772612258950,0.0765479,87.111,87.063,19.0328763]
[1772612259844,20.37646065,87.109,87.063,19.0328763]
[1772612260150,20.37646065,87.109,87.05,4.51775249]
[1772612260348,20.37646065,87.109,87.051,19.0328763]
[1772612260550,10.332,87.098,87.051,19.0328763]
[1772612261447,20.37646065,87.107,87.051,19.0328763]
[1772612261947,0.07439954,87.083,87.051,19.0328763]
[1772612262549,0.07439954,87.083,87.031,19.0328763]
[1772612262752,0.07439954,87.083,87.03,4.51799038]
[1772612262753,0.07439954,87.083,87.034,19.0328763]
[1772612263248,20.37646065,87.094,87.034,19.0328763]